[Event "Early-Titled-Tuesday-Blitz-May-07-2024"]
[Site "Chess.com"]
[Date "2024.05.07"]
[Round "5"]
[White "Kyrko_Gamba"]
[Black "LikeWater"]
[Result "1-0"]
[WhiteElo "2504"]
[BlackElo "2673"]
[TimeControl "180+1"]
[EndTime "9:00:28 PDT"]
[Termination "Kyrko_Gamba won by checkmate"]

1. d4 {[%clk 0:03:00.9]} 1... Nf6 {[%clk 0:03:00.9]} 2. Nf3 {[%clk 0:02:56.9]}
2... g6 {[%clk 0:03:00.3]} 3. Bf4 {[%clk 0:02:49.8]} 3... c5 {[%clk 0:02:58.5]}
4. e3 {[%clk 0:02:45.6]} 4... cxd4 {[%clk 0:02:57.2]} 5. exd4 {[%clk 0:02:45.6]}
5... Bg7 {[%clk 0:02:58.1]} 6. Nbd2 {[%clk 0:02:44.5]} 6... O-O {[%clk
0:02:57.4]} 7. h3 {[%clk 0:02:43.9]} 7... d6 {[%clk 0:02:56.3]} 8. Be2 {[%clk
0:02:42.7]} 8... Nc6 {[%clk 0:02:45.6]} 9. O-O {[%clk 0:02:40.7]} 9... Nd5
{[%clk 0:02:45.7]} 10. Bg3 {[%clk 0:02:32.6]} 10... e5 {[%clk 0:02:45.4]} 11.
dxe5 {[%clk 0:02:22.1]} 11... dxe5 {[%clk 0:02:46.3]} 12. c4 {[%clk 0:02:20.4]}
12... Nf4 {[%clk 0:02:39.3]} 13. Bxf4 {[%clk 0:02:20]} 13... exf4 {[%clk
0:02:40.2]} 14. Qc1 {[%clk 0:02:17.5]} 14... Re8 {[%clk 0:02:37.9]} 15. Bd1
{[%clk 0:02:16.8]} 15... Nb4 {[%clk 0:02:30.8]} 16. Bc2 {[%clk 0:02:01.9]} 16...
Nd3 {[%clk 0:01:44.7]} 17. Bxd3 {[%clk 0:02:01]} 17... Qxd3 {[%clk 0:01:45.6]}
18. Rd1 {[%clk 0:01:58.7]} 18... b6 {[%clk 0:01:32.3]} 19. Nb3 {[%clk
0:01:54.8]} 19... Qf5 {[%clk 0:01:29.8]} 20. Nbd4 {[%clk 0:01:53.4]} 20... Qf6
{[%clk 0:01:28.8]} 21. Nb5 {[%clk 0:01:48.3]} 21... Bf5 {[%clk 0:00:51.3]} 22.
Nfd4 {[%clk 0:01:39.4]} 22... f3 {[%clk 0:00:44.1]} 23. Nxf5 {[%clk 0:01:25.2]}
23... Qxf5 {[%clk 0:00:20.5]} 24. Nd6 {[%clk 0:01:23.9]} 24... Qh5 {[%clk
0:00:16.5]} 25. Nxe8 {[%clk 0:01:11.2]} 25... fxg2 {[%clk 0:00:16.4]} 26. Qe3
{[%clk 0:01:06.2]} 26... Bxb2 {[%clk 0:00:04.4]} 27. Rab1 {[%clk 0:00:56.7]}
27... Kf8 {[%clk 0:00:04]} 28. Nc7 {[%clk 0:00:45.7]} 28... Rc8 {[%clk
0:00:04.3]} 29. Rd7 {[%clk 0:00:20.5]} 29... Bf6 {[%clk 0:00:03.2]} 30. Rbd1
{[%clk 0:00:15.3]} 30... Qf5 {[%clk 0:00:03]} 31. Kxg2 {[%clk 0:00:12.5]} 31...
h5 {[%clk 0:00:03.1]} 32. Qf3 {[%clk 0:00:12.6]} 32... Qg5+ {[%clk 0:00:03]} 33.
Kf1 {[%clk 0:00:11.8]} 33... Kg7 {[%clk 0:00:03.1]} 34. Nd5 {[%clk 0:00:11.3]}
34... Rc6 {[%clk 0:00:02.5]} 35. Ne7 {[%clk 0:00:09.4]} 35... Re6 {[%clk
0:00:02.4]} 36. Nd5 {[%clk 0:00:09.1]} 36... Re5 {[%clk 0:00:01.7]} 37. Qxf6+
{[%clk 0:00:08.4]} 37... Qxf6 {[%clk 0:00:02.6]} 38. Nxf6 {[%clk 0:00:09.2]}
38... Kxf6 {[%clk 0:00:02.7]} 39. Rxa7 {[%clk 0:00:10.1]} 39... Re6 {[%clk
0:00:02.7]} 40. Rb7 {[%clk 0:00:10.1]} 40... Rc6 {[%clk 0:00:03.1]} 41. Rb1
{[%clk 0:00:10]} 41... Ke5 {[%clk 0:00:03.3]} 42. R7xb6 {[%clk 0:00:10.5]} 42...
Rc8 {[%clk 0:00:04]} 43. R6b5+ {[%clk 0:00:10.8]} 43... Kd4 {[%clk 0:00:04.9]}
44. c5 {[%clk 0:00:11.7]} 44... Kd5 {[%clk 0:00:05.1]} 45. Rd1+ {[%clk
0:00:11.5]} 45... Kc6 {[%clk 0:00:05.4]} 46. Rdb1 {[%clk 0:00:11.5]} 46... Ra8
{[%clk 0:00:05.5]} 47. R1b2 {[%clk 0:00:11.3]} 47... Ra3 {[%clk 0:00:05.7]} 48.
R5b3 {[%clk 0:00:10.9]} 48... Ra4 {[%clk 0:00:06]} 49. Rf3 {[%clk 0:00:10.9]}
49... f5 {[%clk 0:00:05.9]} 50. Rb6+ {[%clk 0:00:11.1]} 50... Kxc5 {[%clk
0:00:06.4]} 51. Rxg6 {[%clk 0:00:12]} 51... Rxa2 {[%clk 0:00:06.4]} 52. Rxf5+
{[%clk 0:00:12.2]} 52... Kd4 {[%clk 0:00:07.3]} 53. Rxh5 {[%clk 0:00:12.7]}
53... Ke4 {[%clk 0:00:07.7]} 54. Rf6 {[%clk 0:00:12.9]} 54... Kd4 {[%clk
0:00:07.5]} 55. Rh4+ {[%clk 0:00:12.6]} 55... Ke5 {[%clk 0:00:07.8]} 56. Rf3
{[%clk 0:00:11.6]} 56... Ke6 {[%clk 0:00:07.8]} 57. Re4+ {[%clk 0:00:11.3]}
57... Kd5 {[%clk 0:00:08.4]} 58. Ree3 {[%clk 0:00:12.2]} 58... Kd4 {[%clk
0:00:08.8]} 59. Kg2 {[%clk 0:00:12.4]} 59... Kd5 {[%clk 0:00:09.4]} 60. Rf4
{[%clk 0:00:12.5]} 60... Kd6 {[%clk 0:00:09.1]} 61. Rg3 {[%clk 0:00:12.4]} 61...
Ke5 {[%clk 0:00:09.5]} 62. Rff3 {[%clk 0:00:12.2]} 62... Ke4 {[%clk 0:00:09.9]}
63. h4 {[%clk 0:00:13.1]} 63... Ra8 {[%clk 0:00:09]} 64. h5 {[%clk 0:00:12.8]}
64... Rh8 {[%clk 0:00:09.9]} 65. Rh3 {[%clk 0:00:13.2]} 65... Ke5 {[%clk
0:00:10.3]} 66. h6 {[%clk 0:00:13.1]} 66... Rh7 {[%clk 0:00:11]} 67. Rfg3 {[%clk
0:00:12.9]} 67... Ke6 {[%clk 0:00:11.9]} 68. Rg7 {[%clk 0:00:13.2]} 68... Rh8
{[%clk 0:00:12.6]} 69. h7 {[%clk 0:00:13.6]} 69... Rf8 {[%clk 0:00:10.7]} 70.
h8=Q {[%clk 0:00:13.6]} 70... Rf6 {[%clk 0:00:10.9]} 71. Rh6 {[%clk 0:00:13.3]}
71... Ke5 {[%clk 0:00:08.7]} 72. Re7+ {[%clk 0:00:12.4]} 72... Kd6 {[%clk
0:00:05.9]} 73. Qxf6+ {[%clk 0:00:12.4]} 73... Kc5 {[%clk 0:00:06.7]} 74. Rh5+
{[%clk 0:00:11.7]} 74... Kb4 {[%clk 0:00:07.6]} 75. Re4+ {[%clk 0:00:11.7]}
75... Ka3 {[%clk 0:00:08.5]} 76. Qc3+ {[%clk 0:00:11.5]} 76... Ka2 {[%clk
0:00:09.4]} 77. Re2+ {[%clk 0:00:11.6]} 77... Kb1 {[%clk 0:00:09.7]} 78. Qb2#
{[%clk 0:00:12.2]} 1-0

[Event "Early-Titled-Tuesday-Blitz-May-07-2024"]
[Site "Chess.com"]
[Date "2024.05.07"]
[Round "5"]
[White "KuzubovYuriy"]
[Black "NikitaShnadrygin"]
[Result "1-0"]
[WhiteElo "2958"]
[BlackElo "2699"]
[TimeControl "180+1"]
[EndTime "9:00:29 PDT"]
[Termination "KuzubovYuriy won on time"]

1. d4 {[%clk 0:03:00.9]} 1... d5 {[%clk 0:02:57.4]} 2. c4 {[%clk 0:03:01.4]}
2... Nc6 {[%clk 0:02:57.4]} 3. Nf3 {[%clk 0:02:53.2]} 3... Bg4 {[%clk
0:02:56.2]} 4. Nc3 {[%clk 0:02:49.9]} 4... e6 {[%clk 0:02:55.1]} 5. cxd5 {[%clk
0:02:48.7]} 5... exd5 {[%clk 0:02:56]} 6. Bf4 {[%clk 0:02:46.4]} 6... Bd6 {[%clk
0:02:46.7]} 7. Bg3 {[%clk 0:02:44.4]} 7... Nge7 {[%clk 0:02:40.8]} 8. e3 {[%clk
0:02:41.8]} 8... O-O {[%clk 0:02:37.4]} 9. Bd3 {[%clk 0:02:39.3]} 9... h6 {[%clk
0:02:20.9]} 10. a3 {[%clk 0:02:29.5]} 10... Re8 {[%clk 0:02:04.3]} 11. Qc2
{[%clk 0:02:24.8]} 11... a6 {[%clk 0:01:43]} 12. Ne2 {[%clk 0:02:08.9]} 12...
Qd7 {[%clk 0:01:29.6]} 13. h3 {[%clk 0:01:50.1]} 13... Bxf3 {[%clk 0:01:21.1]}
14. gxf3 {[%clk 0:01:49.5]} 14... Nd8 {[%clk 0:01:05.8]} 15. Kf1 {[%clk
0:01:26.2]} 15... Rc8 {[%clk 0:01:03.4]} 16. b4 {[%clk 0:01:24.8]} 16... Ne6
{[%clk 0:00:56]} 17. Kg2 {[%clk 0:01:18.5]} 17... a5 {[%clk 0:00:55.8]} 18. bxa5
{[%clk 0:01:13]} 18... c5 {[%clk 0:00:55.2]} 19. Bxd6 {[%clk 0:00:35.9]} 19...
Qxd6 {[%clk 0:00:46.5]} 20. Qb2 {[%clk 0:00:35.6]} 20... Nc6 {[%clk 0:00:40.5]}
21. dxc5 {[%clk 0:00:30.7]} 21... Nxc5 {[%clk 0:00:38.6]} 22. Bf5 {[%clk
0:00:30.5]} 22... Ra8 {[%clk 0:00:35.6]} 23. Rhd1 {[%clk 0:00:25.3]} 23... Rxa5
{[%clk 0:00:33.6]} 24. Rac1 {[%clk 0:00:18.2]} 24... Rea8 {[%clk 0:00:28.9]} 25.
Qc2 {[%clk 0:00:09.4]} 25... Ne6 {[%clk 0:00:23.2]} 26. Bxe6 {[%clk 0:00:08.9]}
26... fxe6 {[%clk 0:00:23.3]} 27. Rb1 {[%clk 0:00:07.8]} 27... R8a7 {[%clk
0:00:18.6]} 28. Nf4 {[%clk 0:00:07.5]} 28... Ne7 {[%clk 0:00:13.7]} 29. Rd3
{[%clk 0:00:04.9]} 29... e5 {[%clk 0:00:13.7]} 30. Ne2 {[%clk 0:00:04.7]} 30...
Qg6+ {[%clk 0:00:13.3]} 31. Ng3 {[%clk 0:00:04.2]} 31... Rxa3 {[%clk 0:00:12.8]}
32. Rbd1 {[%clk 0:00:03.2]} 32... Ra2 {[%clk 0:00:11.2]} 33. Qc7 {[%clk
0:00:01.8]} 33... Qf7 {[%clk 0:00:08.2]} 34. Qxe5 {[%clk 0:00:01.5]} 34... R2a6
{[%clk 0:00:07.2]} 35. Rd4 {[%clk 0:00:01.3]} 35... Kh7 {[%clk 0:00:07.8]} 36.
Rf4 {[%clk 0:00:01.3]} 36... Qe6 {[%clk 0:00:06.7]} 37. Qxe6 {[%clk 0:00:01.7]}
37... Rxe6 {[%clk 0:00:07.6]} 38. Rb1 {[%clk 0:00:02.1]} 38... Ng6 {[%clk
0:00:06.5]} 39. Rd4 {[%clk 0:00:02.4]} 39... Ne7 {[%clk 0:00:07.3]} 40. f4
{[%clk 0:00:02.7]} 40... g6 {[%clk 0:00:07.3]} 41. h4 {[%clk 0:00:02.7]} 41...
Kg7 {[%clk 0:00:07.5]} 42. h5 {[%clk 0:00:03.1]} 42... Kf6 {[%clk 0:00:08]} 43.
hxg6 {[%clk 0:00:03.5]} 43... Kxg6 {[%clk 0:00:08.9]} 44. Rb5 {[%clk 0:00:03.2]}
44... Rd6 {[%clk 0:00:09.2]} 45. f5+ {[%clk 0:00:03.5]} 45... Nxf5 {[%clk
0:00:08.6]} 46. Nxf5 {[%clk 0:00:03.6]} 46... Kxf5 {[%clk 0:00:09.5]} 47. Rdxd5+
{[%clk 0:00:04.2]} 47... Rxd5 {[%clk 0:00:10.1]} 48. Rxd5+ {[%clk 0:00:04.9]}
48... Kg6 {[%clk 0:00:10.6]} 49. Rb5 {[%clk 0:00:05.3]} 49... Kf6 {[%clk
0:00:09.6]} 50. f4 {[%clk 0:00:05.7]} 50... Ra3 {[%clk 0:00:08.4]} 51. Kf3
{[%clk 0:00:06]} 51... Ra7 {[%clk 0:00:08.9]} 52. e4 {[%clk 0:00:06]} 52... Kg6
{[%clk 0:00:08.7]} 53. Kg4 {[%clk 0:00:06.1]} 53... Ra1 {[%clk 0:00:03.6]} 54.
Rb6+ {[%clk 0:00:06.5]} 54... Kg7 {[%clk 0:00:03.3]} 55. Rxb7+ {[%clk
0:00:07.3]} 55... Kg6 {[%clk 0:00:04.2]} 56. Rb6+ {[%clk 0:00:07.9]} 56... Kg7
{[%clk 0:00:04.6]} 57. f5 {[%clk 0:00:08.6]} 57... Rg1+ {[%clk 0:00:04.4]} 58.
Kf4 {[%clk 0:00:09]} 58... Rf1+ {[%clk 0:00:04.9]} 59. Ke5 {[%clk 0:00:09.4]}
59... h5 {[%clk 0:00:05.8]} 60. Rb7+ {[%clk 0:00:09.3]} 60... Kh6 {[%clk
0:00:06.2]} 61. Kf6 {[%clk 0:00:09.1]} 61... h4 {[%clk 0:00:06.2]} 62. e5 {[%clk
0:00:09.4]} 62... Kh5 {[%clk 0:00:05.1]} 63. e6 {[%clk 0:00:08.5]} 63... Kg4
{[%clk 0:00:05.5]} 64. e7 {[%clk 0:00:08.6]} 64... Rxf5+ {[%clk 0:00:05.7]} 65.
Ke6 {[%clk 0:00:08.2]} 65... Rf1 {[%clk 0:00:06]} 66. Rb4+ {[%clk 0:00:08.4]}
66... Kg3 {[%clk 0:00:05.1]} 67. Re4 {[%clk 0:00:08.7]} 1-0

[Event "Early-Titled-Tuesday-Blitz-May-07-2024"]
[Site "Chess.com"]
[Date "2024.05.07"]
[Round "5"]
[White "JG-17"]
[Black "Abund"]
[Result "0-1"]
[WhiteElo "2525"]
[BlackElo "2754"]
[TimeControl "180+1"]
[EndTime "9:00:29 PDT"]
[Termination "Abund won by checkmate"]

1. e4 {[%clk 0:02:48.6]} 1... c6 {[%clk 0:02:59.8]} 2. d4 {[%clk 0:02:48.5]}
2... d5 {[%clk 0:03:00.7]} 3. exd5 {[%clk 0:02:49.4]} 3... cxd5 {[%clk
0:03:00.9]} 4. Bd3 {[%clk 0:02:50.1]} 4... Nc6 {[%clk 0:03:01.3]} 5. c3 {[%clk
0:02:50.4]} 5... Nf6 {[%clk 0:03:01.9]} 6. Bf4 {[%clk 0:02:48.3]} 6... Bg4
{[%clk 0:02:57.9]} 7. Qb3 {[%clk 0:02:48.7]} 7... Qd7 {[%clk 0:02:57.3]} 8. Nd2
{[%clk 0:02:43.4]} 8... e6 {[%clk 0:02:57.3]} 9. Ngf3 {[%clk 0:02:43.9]} 9...
Bd6 {[%clk 0:02:56.6]} 10. Bxd6 {[%clk 0:02:44.5]} 10... Qxd6 {[%clk 0:02:57.5]}
11. O-O {[%clk 0:02:45.1]} 11... O-O {[%clk 0:02:56.8]} 12. Rfe1 {[%clk
0:02:45.1]} 12... Bxf3 {[%clk 0:02:57]} 13. Nxf3 {[%clk 0:02:44.7]} 13... Qc7
{[%clk 0:02:57.8]} 14. Ne5 {[%clk 0:02:27.3]} 14... Nxe5 {[%clk 0:02:54.5]} 15.
Rxe5 {[%clk 0:02:24.4]} 15... Ng4 {[%clk 0:02:43.9]} 16. Rh5 {[%clk 0:02:18]}
16... g6 {[%clk 0:02:34]} 17. Rh3 {[%clk 0:02:10.7]} 17... Qf4 {[%clk
0:02:17.6]} 18. Qc2 {[%clk 0:02:05.2]} 18... Rac8 {[%clk 0:02:10.5]} 19. Qe2
{[%clk 0:02:04.4]} 19... h5 {[%clk 0:02:06.8]} 20. Rh4 {[%clk 0:01:47.5]} 20...
Qg5 {[%clk 0:01:54.8]} 21. g3 {[%clk 0:01:44]} 21... a6 {[%clk 0:01:52.1]} 22.
h3 {[%clk 0:01:38.9]} 22... Nf6 {[%clk 0:01:44]} 23. Rf4 {[%clk 0:01:39.2]}
23... Nd7 {[%clk 0:01:23]} 24. Kg2 {[%clk 0:01:33]} 24... Kg7 {[%clk 0:01:17.7]}
25. h4 {[%clk 0:01:32]} 25... Qe7 {[%clk 0:01:17.8]} 26. Rh1 {[%clk 0:01:30.1]}
26... e5 {[%clk 0:01:12.4]} 27. dxe5 {[%clk 0:01:29.5]} 27... Nxe5 {[%clk
0:01:08.6]} 28. Re1 {[%clk 0:01:25.5]} 28... Rce8 {[%clk 0:01:07.5]} 29. Bc2
{[%clk 0:01:15.2]} 29... Qd7 {[%clk 0:00:51.2]} 30. Qd2 {[%clk 0:01:03.2]} 30...
Nc6 {[%clk 0:00:50.5]} 31. Rxe8 {[%clk 0:00:55.6]} 31... Rxe8 {[%clk 0:00:51]}
32. Bb3 {[%clk 0:00:55.6]} 32... Re5 {[%clk 0:00:48.4]} 33. Rf3 {[%clk
0:00:52.9]} 33... b5 {[%clk 0:00:36.6]} 34. Rd3 {[%clk 0:00:52.7]} 34... Ne7
{[%clk 0:00:34.2]} 35. Qf4 {[%clk 0:00:52]} 35... Qe6 {[%clk 0:00:32.3]} 36. Qd4
{[%clk 0:00:51]} 36... Kh7 {[%clk 0:00:28.9]} 37. a4 {[%clk 0:00:36.8]} 37...
Nf5 {[%clk 0:00:25.6]} 38. Qa7 {[%clk 0:00:26]} 38... bxa4 {[%clk 0:00:23.9]}
39. Bxa4 {[%clk 0:00:26.3]} 39... Re1 {[%clk 0:00:19.6]} 40. Rf3 {[%clk
0:00:16.3]} 40... Qe2 {[%clk 0:00:11.6]} 41. Qxf7+ {[%clk 0:00:15.4]} 41... Ng7
{[%clk 0:00:11.9]} 42. Re3 {[%clk 0:00:04]} 42... Qf1+ {[%clk 0:00:08.4]} 43.
Kf3 {[%clk 0:00:04.6]} 43... Qh1+ {[%clk 0:00:07.1]} 44. Kf4 {[%clk 0:00:04.7]}
44... Rxe3 {[%clk 0:00:04.4]} 45. Kxe3 {[%clk 0:00:05.6]} 45... Qe4+ {[%clk
0:00:04.7]} 46. Kd2 {[%clk 0:00:05.1]} 46... Qxa4 {[%clk 0:00:05.1]} 47. Qxd5
{[%clk 0:00:04.3]} 47... Qa1 {[%clk 0:00:05.2]} 48. b4 {[%clk 0:00:02.4]} 48...
Qb2+ {[%clk 0:00:05.1]} 49. Kd3 {[%clk 0:00:02.1]} 49... Qxf2 {[%clk 0:00:05.4]}
50. Qe5 {[%clk 0:00:01.8]} 50... Qf3+ {[%clk 0:00:05]} 51. Kc4 {[%clk
0:00:00.8]} 51... Qc6+ {[%clk 0:00:04.6]} 52. Kb3 {[%clk 0:00:01.3]} 52... Ne6
{[%clk 0:00:03.4]} 53. c4 {[%clk 0:00:01.5]} 53... Qf3+ {[%clk 0:00:03.5]} 54.
Ka4 {[%clk 0:00:01.7]} 54... Qc6+ {[%clk 0:00:03.9]} 55. Kb3 {[%clk 0:00:01.8]}
55... Qd7 {[%clk 0:00:01.9]} 56. c5 {[%clk 0:00:02.2]} 56... Qd3+ {[%clk
0:00:02.3]} 57. Ka4 {[%clk 0:00:02.7]} 57... Qb5+ {[%clk 0:00:02.8]} 58. Kb3
{[%clk 0:00:03.1]} 58... Qc6 {[%clk 0:00:03.2]} 59. Qd6 {[%clk 0:00:02.7]} 59...
Qf3+ {[%clk 0:00:03.1]} 60. Ka4 {[%clk 0:00:03]} 60... Ng7 {[%clk 0:00:01.3]}
61. c6 {[%clk 0:00:03.4]} 61... Qc3 {[%clk 0:00:01.6]} 62. c7 {[%clk 0:00:03.9]}
62... Qc4 {[%clk 0:00:01.7]} 63. Qd8 {[%clk 0:00:03.6]} 63... Qa2# {[%clk
0:00:01.8]} 0-1

[Event "Early-Titled-Tuesday-Blitz-May-07-2024"]
[Site "Chess.com"]
[Date "2024.05.07"]
[Round "5"]
[White "Semetey"]
[Black "K_A_S_T_O_R"]
[Result "1-0"]
[WhiteElo "2600"]
[BlackElo "2855"]
[TimeControl "180+1"]
[EndTime "9:00:30 PDT"]
[Termination "Semetey won by resignation"]

1. Nc3 {[%clk 0:02:52.1]} 1... c5 {[%clk 0:02:57.3]} 2. Nf3 {[%clk 0:02:50.2]}
2... Nc6 {[%clk 0:02:47.3]} 3. e4 {[%clk 0:02:49.5]} 3... d6 {[%clk 0:02:47.1]}
4. d4 {[%clk 0:02:48.9]} 4... cxd4 {[%clk 0:02:47.2]} 5. Nxd4 {[%clk 0:02:49.8]}
5... Nf6 {[%clk 0:02:47.5]} 6. Bg5 {[%clk 0:02:47.6]} 6... Qb6 {[%clk
0:02:46.5]} 7. Nb3 {[%clk 0:02:46.9]} 7... e6 {[%clk 0:02:45.6]} 8. Qd2 {[%clk
0:02:46.2]} 8... Be7 {[%clk 0:02:44.4]} 9. Be2 {[%clk 0:02:35.5]} 9... a6 {[%clk
0:02:43.4]} 10. g4 {[%clk 0:02:31.8]} 10... Ne5 {[%clk 0:02:36.7]} 11. h3 {[%clk
0:02:16.7]} 11... h6 {[%clk 0:02:33.1]} 12. Be3 {[%clk 0:02:16.3]} 12... Qc7
{[%clk 0:02:32.7]} 13. Qd4 {[%clk 0:02:11.7]} 13... g5 {[%clk 0:02:26.8]} 14.
O-O-O {[%clk 0:02:09]} 14... Bd7 {[%clk 0:02:23.7]} 15. Kb1 {[%clk 0:02:01.2]}
15... Bc6 {[%clk 0:02:23.3]} 16. f3 {[%clk 0:02:00.6]} 16... Ng6 {[%clk
0:02:19.1]} 17. Qd2 {[%clk 0:01:46.6]} 17... b5 {[%clk 0:02:13.4]} 18. a3 {[%clk
0:01:27]} 18... Rb8 {[%clk 0:02:09.9]} 19. Na2 {[%clk 0:01:24.4]} 19... Nd7
{[%clk 0:02:05.5]} 20. Qa5 {[%clk 0:01:20]} 20... Qc8 {[%clk 0:01:48.6]} 21. Qc3
{[%clk 0:01:01.6]} 21... Nde5 {[%clk 0:01:42.7]} 22. Na5 {[%clk 0:00:58.2]}
22... Bd7 {[%clk 0:01:40.9]} 23. Qxc8+ {[%clk 0:00:53.9]} 23... Bxc8 {[%clk
0:01:38.3]} 24. Nb4 {[%clk 0:00:49.6]} 24... Kd7 {[%clk 0:01:32.3]} 25. c4
{[%clk 0:00:41.2]} 25... Bd8 {[%clk 0:01:28.5]} 26. Bc5 {[%clk 0:00:27.6]} 26...
Bxa5 {[%clk 0:01:07.9]} 27. Bxd6 {[%clk 0:00:26.8]} 27... Ke8 {[%clk 0:01:02.1]}
28. Bxb8 {[%clk 0:00:24.9]} 28... Bxb4 {[%clk 0:00:57]} 29. axb4 {[%clk
0:00:25.8]} 29... bxc4 {[%clk 0:00:57.6]} 30. Rd4 {[%clk 0:00:18.7]} 30... Ke7
{[%clk 0:00:55.3]} 31. Bd6+ {[%clk 0:00:16.4]} 31... Kf6 {[%clk 0:00:55]} 32.
Bxc4 {[%clk 0:00:16.4]} 32... Bb7 {[%clk 0:00:55.1]} 33. Bc5 {[%clk 0:00:16.2]}
33... Nf4 {[%clk 0:00:53]} 34. Rf1 {[%clk 0:00:15.3]} 34... Nxh3 {[%clk
0:00:51.7]} 35. Bb3 {[%clk 0:00:15.1]} 35... Nf4 {[%clk 0:00:51.8]} 36. Rd6
{[%clk 0:00:15.3]} 36... Ne2 {[%clk 0:00:44.5]} 37. Rb6 {[%clk 0:00:14.8]} 37...
Ba8 {[%clk 0:00:42.6]} 38. Bd1 {[%clk 0:00:14.8]} 38... Nf4 {[%clk 0:00:39]} 39.
Bd4 {[%clk 0:00:14.7]} 39... Rd8 {[%clk 0:00:39.5]} 40. Bc3 {[%clk 0:00:14.7]}
40... Nd3 {[%clk 0:00:40]} 41. Bc2 {[%clk 0:00:14.9]} 41... Kg6 {[%clk
0:00:40.1]} 42. Bxd3 {[%clk 0:00:14.7]} 42... Nxd3 {[%clk 0:00:39.8]} 43. Rxa6
{[%clk 0:00:15.3]} 43... Nf4 {[%clk 0:00:36.5]} 44. Kc2 {[%clk 0:00:14.8]} 44...
h5 {[%clk 0:00:35.7]} 45. gxh5+ {[%clk 0:00:14.5]} 45... Kxh5 {[%clk 0:00:36.3]}
46. Rd1 {[%clk 0:00:15.1]} 46... Rc8 {[%clk 0:00:35.5]} 47. Ra5 {[%clk
0:00:14.7]} 47... Kg6 {[%clk 0:00:34.6]} 48. Rg1 {[%clk 0:00:14.4]} 48... f6
{[%clk 0:00:35]} 49. Kb3 {[%clk 0:00:12.9]} 49... e5 {[%clk 0:00:28.6]} 50. Rc5
{[%clk 0:00:12.9]} 50... Rd8 {[%clk 0:00:27.3]} 51. b5 {[%clk 0:00:13.3]} 51...
Rd6 {[%clk 0:00:20.3]} 52. Ka4 {[%clk 0:00:12.1]} 52... Ne2 {[%clk 0:00:19.1]}
53. Ka5 {[%clk 0:00:11.3]} 53... Nxg1 {[%clk 0:00:18.8]} 54. b6 {[%clk 0:00:11]}
54... Bc6 {[%clk 0:00:18.1]} 55. Rxc6 {[%clk 0:00:10.6]} 55... Rxc6 {[%clk
0:00:18.4]} 56. b7 {[%clk 0:00:11.5]} 56... Nxf3 {[%clk 0:00:15.1]} 57. b8=Q
{[%clk 0:00:11.2]} 57... Rc5+ {[%clk 0:00:12.9]} 58. Kb4 {[%clk 0:00:10.3]}
58... Rxc3 {[%clk 0:00:10.7]} 59. Kxc3 {[%clk 0:00:09.2]} 59... g4 {[%clk
0:00:11.6]} 60. Kd3 {[%clk 0:00:08.9]} 60... Nd4 {[%clk 0:00:11.4]} 61. Qg8+
{[%clk 0:00:08.6]} 61... Kh5 {[%clk 0:00:11.6]} 62. b4 {[%clk 0:00:08.5]} 62...
Kh4 {[%clk 0:00:10.9]} 63. Ke3 {[%clk 0:00:08.9]} 63... g3 {[%clk 0:00:10.9]}
64. Qh7+ {[%clk 0:00:08.1]} 64... Kg4 {[%clk 0:00:11.3]} 65. Qg6+ {[%clk
0:00:08.6]} 65... Kh3 {[%clk 0:00:11.7]} 66. Qh6+ {[%clk 0:00:08.2]} 66... Kg4
{[%clk 0:00:11.7]} 67. Qxf6 {[%clk 0:00:08.5]} 67... g2 {[%clk 0:00:11.7]} 68.
Qg6+ {[%clk 0:00:09]} 68... Kh3 {[%clk 0:00:12.1]} 69. Kf2 {[%clk 0:00:09.3]}
1-0